bitfinex/quotes_ETHUSD_20220308
["timestamp","ask_amount","ask_price","bid_price","bid_amount"]
[1646744399363,0.97505421,2577.7,2577.4,0.18624107]
[1646744399561,0.0289502,2577.5,2577.3,0.18624107]
[1646744399762,0.9991502,2577.5,2577.3,0.65224107]
[1646744400262,1.04203443,2577.5,2577.4,0.18624107]
[1646744400462,1.04680887,2577.5,2577.4,0.18624107]
[1646744401463,1.04203443,2577.5,2577.4,0.18624107]
[1646744401865,1.94499558,2577.6,2577.4,0.18624107]
[1646744402263,1.94499558,2577.6,2577.3,0.18624107]
[1646744402711,1.94039,2577.6,2577.3,0.18624107]
[1646744402911,1.94499552,2577.6,2577.3,0.18624107]
[1646744403312,1.94499552,2577.6,2577.4,0.04179895]
[1646744403715,1.23277476,2577.5,2577.4,0.04179895]
[1646744407963,1.23277476,2577.5,2576.8,0.18624107]
[1646744407964,5.0,2577.4,2576.8,0.18624107]
[1646744408164,5.97061,2577.4,2576.8,0.18624107]
[1646744408363,2.17362,2577.4,2576.8,0.18624107]
[1646744408961,0.00183296,2577.2,2576.2,0.18624107]
[1646744409163,0.91505344,2576.6,2576.4,0.18624107]
[1646744409363,1.88567344,2576.6,2576.4,0.18624107]
[1646744409968,1.88567344,2576.6,2575.9,0.18624107]
[1646744410211,1.88567344,2576.6,2576.1,0.18624107]
[1646744410414,1.94306289,2576.7,2576.3,0.18624107]
[1646744410415,1.94189,2576.5,2576.3,0.18624107]
[1646744410816,1.94189,2576.5,2576.4,1.77379193]
[1646744411016,0.24853704,2576.5,2576.4,1.77379193]
[1646744413319,0.24853704,2576.5,2576.4,2.53979193]
[1646744414364,0.97066,2576.6,2576.4,2.53979193]
[1646744414560,0.97066,2576.6,2576.5,1.77379193]
[1646744414761,0.97066,2576.6,2576.5,2.23979193]
[1646744416761,4.47066,2576.6,2576.5,1.77379193]
[1646744416963,4.47066,2576.6,2576.0,0.18624107]
[1646744417163,4.47066,2576.6,2576.2,0.18624107]
[1646744417365,4.47066,2576.6,2576.4,0.19083078]
[1646744417620,0.97066,2576.6,2576.4,0.19083078]
[1646744418012,0.97066,2576.6,2576.4,0.00458971]
[1646744418213,0.97066,2576.6,2576.1,0.18624107]
[1646744418414,0.97066,2576.6,2576.0,1.14180249]
[1646744418415,0.97066,2576.6,2576.3,0.18624107]
[1646744418613,0.97066,2576.6,2576.4,0.00458977]
[1646744419014,3.5,2576.5,2576.4,0.00458977]
[1646744419417,0.97066,2576.6,2575.9,0.18624107]
[1646744419613,0.97066,2576.6,2576.1,0.18624107]
[1646744419614,2.09547488,2576.2,2576.1,0.18624107]
[1646744419813,2.09547488,2576.2,2576.1,1.7739382]
[1646744420218,2.09547488,2576.2,2576.1,1.67444657]
[1646744422261,2.09547488,2576.2,2576.0,0.00447546]
[1646744422460,3.06632488,2576.2,2576.0,0.00447546]
[1646744423061,3.06632488,2576.2,2575.6,0.08674944]
[1646744423260,3.06632488,2576.2,2576.0,0.00435991]
[1646744424264,3.06632488,2576.2,2575.8,0.08674944]
[1646744424465,3.06632488,2576.2,2576.0,0.09112288]
[1646744424466,2.09547488,2576.2,2576.0,0.09112288]
[1646744424666,1.20301,2576.3,2576.1,2.14029407]
[1646744424869,1.20301,2576.3,2576.2,1.67429407]
[1646744425117,1.20301,2576.3,2576.2,2.44029407]
[1646744426114,0.00437224,2576.7,2576.2,3.00718618]
[1646744426314,0.00437224,2576.7,2576.4,0.08674944]
[1646744426513,0.04715658,2576.8,2576.6,0.08674944]
[1646744426714,0.04715658,2576.8,2576.7,2.14029407]
[1646744427214,1.01754658,2576.8,2576.7,2.44029407]
[1646744427816,1.01754658,2576.8,2576.7,1.97429407]
[1646744428615,1.01754658,2576.8,2576.7,0.38674944]
[1646744428859,1.01754658,2576.8,2576.7,0.08674944]
[1646744429261,1.01754658,2576.8,2576.7,1.67411875]
[1646744429461,1.01754658,2576.8,2576.7,0.08674944]
[1646744429662,1.01754658,2576.8,2576.5,0.08674944]
[1646744429875,1.01754658,2576.8,2576.6,1.58737953]
[1646744429876,0.83140035,2576.7,2576.6,1.58737953]
[1646744430062,0.83140035,2576.7,2576.6,1.88737953]
[1646744430265,2.77280035,2576.7,2576.2,2.2407119]
[1646744430463,2.77280035,2576.7,2576.3,1.58748996]
[1646744430667,1.9414,2576.7,2576.4,0.00441729]
[1646744430866,3.5,2576.6,2576.5,1.58748996]
[1646744431064,1.9414,2576.7,2576.4,0.00441729]
[1646744431464,1.9414,2576.7,2575.7,0.71210467]
[1646744431665,0.92864019,2576.2,2575.7,2.29963533]
[1646744431866,0.92864019,2576.2,2575.8,1.58753066]
[1646744431867,0.20618535,2576.2,2575.8,1.58753066]
[1646744432265,0.20618535,2576.2,2575.9,1.58753066]
[1646744432465,0.20618535,2576.2,2576.0,1.58753066]
[1646744432714,1.94181,2576.3,2576.1,1.58753066]
[1646744432915,0.97091,2576.2,2575.5,1.68298177]
[1646744433116,0.97091,2576.2,2575.9,0.00435275]
[1646744433318,0.97091,2576.2,2576.0,1.58760943]
[1646744434118,0.97091,2576.2,2576.0,1.59196862]
[1646744434320,0.97091,2576.2,2576.1,1.58760943]
[1646744434922,0.3,2576.3,2576.1,1.58760943]
[1646744435121,0.97067,2576.4,2576.1,2.05360943]
[1646744435122,2.09547488,2576.2,2576.1,2.05360943]
[1646744438572,2.09547488,2576.2,2576.1,2.7657141]
[1646744438769,2.09547488,2576.2,2576.1,3.7657141]
[1646744439268,2.04547488,2576.2,2576.1,3.99392718]
[1646744439671,2.04547488,2576.2,2576.1,3.28182251]
[1646744439970,2.04547488,2576.2,2576.1,4.41932251]
[1646744440211,1.04773744,2576.2,2576.1,5.41932251]
[1646744440414,2.04547488,2576.2,2576.1,5.41932251]
[1646744441712,0.97055,2576.4,2576.3,1.167]
[1646744441913,0.97055,2576.4,2576.3,3.22060943]
[1646744442314,0.97055,2576.4,2576.3,4.22060943]
[1646744442513,0.97055,2576.4,2576.3,4.93068847]
[1646744443313,0.97055,2576.4,2576.3,4.22060943]
[1646744444165,0.97055,2576.4,2576.3,4.93068847]
[1646744444766,0.97055,2576.4,2576.3,3.93068847]
[1646744444967,0.97055,2576.4,2576.3,3.22060943]
[1646744445368,0.97055,2576.4,2576.3,3.93068847]
[1646744445567,0.97055,2576.4,2576.3,3.22060943]
[1646744448920,0.97055,2576.4,2576.3,3.27777957]
[1646744449119,0.97055,2576.4,2576.3,2.81177957]
[1646744449120,4.47055,2576.4,2576.3,2.81177957]
[1646744449318,0.97055,2576.4,2576.3,2.81177957]
[1646744450120,2.054963,2576.4,2576.3,2.81177957]
[1646744451362,5.554963,2576.4,2576.3,2.81177957]
[1646744451964,2.054963,2576.4,2576.3,2.81177957]
[1646744453267,0.36151795,2576.4,2576.3,2.81177957]
[1646744453868,1.33206795,2576.4,2576.3,2.81177957]
[1646744455425,0.97055,2576.4,2576.3,2.81177957]
[1646744455626,1.94106,2576.5,2576.3,2.81177957]
[1646744455822,2.24106,2576.5,2576.4,2.75460943]
[1646744456023,1.94106,2576.5,2576.4,2.75460943]
[1646744456425,2.80680661,2576.5,2576.4,2.75460943]
[1646744458861,1.94106,2576.5,2576.4,2.75460943]
[1646744459066,0.3,2576.6,2576.4,2.75460943]
[1646744459269,0.14141288,2576.8,2576.6,1.167]
[1646744459464,0.14141288,2576.8,2576.7,2.75460943]
[1646744459865,1.03035103,2576.8,2576.7,2.75460943]
[1646744460868,4.53035103,2576.8,2576.7,2.75460943]
[1646744461069,1.03035103,2576.8,2576.7,1.167]
[1646744461870,4.53035103,2576.8,2576.7,1.167]
[1646744462066,6.47201103,2576.8,2576.7,1.167]
[1646744462468,3.27201103,2576.8,2576.7,1.167]
[1646744462719,1.33035103,2576.8,2576.7,2.75446299]
[1646744462916,1.33035103,2576.8,2576.7,1.167]
[1646744463118,1.94129,2576.7,2576.4,0.00436751]
[1646744463315,1.94129,2576.7,2576.6,1.167]
[1646744463515,1.94129,2576.7,2576.6,2.75444035]
[1646744464018,13.68129,2576.7,2576.6,2.75444035]
[1646744464218,13.68129,2576.7,2576.4,0.06155852]
[1646744464421,1.94129,2576.7,2576.6,1.167]
[1646744464620,11.94129,2576.7,2576.4,0.00436745]
[1646744465220,11.94129,2576.7,2576.3,0.05692467]
[1646744465419,23.68565685,2576.7,2576.5,0.51288157]
[1646744465616,23.68565685,2576.7,2576.4,1.59203387]
[1646744465617,13.88749685,2576.7,2576.4,1.59203387]
[1646744465817,13.88749685,2576.7,2576.4,0.00436737]
[1646744466016,14.18749685,2576.7,2576.4,0.00436737]
[1646744466466,14.18313,2576.7,2576.3,0.05692467]
[1646744466666,14.18313,2576.7,2576.4,1.59198367]
[1646744466667,14.18749685,2576.7,2576.4,1.59198367]
[1646744466866,14.18749685,2576.7,2576.5,1.5876163]
[1646744467671,4.18313,2576.7,2576.5,1.5876163]
[1646744467867,1.94565688,2576.7,2576.4,1.5919837]
[1646744468068,0.00436688,2576.7,2576.6,1.5876163]
[1646744468270,0.15979288,2576.7,2576.6,2.0536163]
[1646744468668,0.00436688,2576.7,2576.6,2.0536163]
[1646744468870,1.04134644,2576.8,2576.6,2.0536163]
[1646744469071,1.04134644,2576.8,2576.7,1.5876163]
[1646744469072,1.04571327,2576.8,2576.7,1.5876163]
[1646744469272,1.04571327,2576.8,2576.7,2.0536163]
[1646744470120,1.04134644,2576.8,2576.7,2.0536163]
[1646744471713,1.0118949,2576.8,2576.7,2.0536163]
[1646744473517,1.0118949,2576.8,2576.7,1.5876163]
[1646744473719,0.95599322,2576.8,2576.7,1.5876163]
[1646744473965,0.95599322,2576.8,2576.5,1.5876163]
[1646744473966,0.89022268,2576.6,2576.5,1.5876163]
[1646744474370,1.86111268,2576.6,2576.4,0.00437422]
[1646744474666,1.86111268,2576.6,2576.5,1.65709226]
[1646744475065,1.86111268,2576.6,2576.5,0.06952798]
[1646744476971,13.60111268,2576.6,2576.5,0.06952798]
[1646744477626,13.60111268,2576.6,2576.4,0.00438404]
[1646744477814,15.54295268,2576.6,2576.4,0.00438404]
[1646744478013,15.84295268,2576.6,2576.4,0.00438404]
[1646744478416,0.97095,2576.3,2575.6,0.466]
[1646744478615,0.90724031,2575.9,2575.7,1.58770463]
[1646744478814,0.97093,2576.2,2576.0,0.78632731]
[1646744479018,2.20151886,2576.2,2576.1,1.58770463]
[1646744479218,1.23058886,2576.2,2576.1,1.58770463]
[1646744480319,1.23649056,2576.2,2576.1,1.58770463]
[1646744480519,1.23649056,2576.2,2576.0,0.79071094]
[1646744480919,15.97649056,2576.2,2576.0,0.78632731]
[1646744481120,15.97649056,2576.2,2576.0,0.79071009]
[1646744481362,16.0059421,2576.2,2576.0,0.79071009]
[1646744481762,12.71121,2576.1,2576.0,0.79071009]
[1646744481961,12.71121,2576.1,2576.0,0.78632731]
[1646744482365,12.7171117,2576.1,2576.0,0.79071014]
[1646744482766,12.7171117,2576.1,2576.0,1.89071014]
[1646744483163,12.7171117,2576.1,2576.0,1.88632731]
[1646744483363,12.74656324,2576.1,2576.0,1.88632731]
[1646744483563,1.00656324,2576.1,2576.0,1.88632731]
[1646744484369,1.03601478,2576.1,2576.0,1.88632731]
[1646744484568,0.06480478,2576.1,2576.0,1.88632731]
[1646744485516,0.07070648,2576.1,2576.0,1.88632731]
[1646744486516,0.10015802,2576.1,2576.0,1.88632731]
[1646744487520,0.10605972,2576.1,2576.0,1.88632731]
[1646744488619,0.13551126,2576.1,2576.0,1.88632731]
[1646744489566,0.14141296,2576.1,2576.0,1.88632731]
[1646744490567,0.14731466,2576.1,2576.0,1.88632731]
[1646744491570,0.1767662,2576.1,2576.0,1.88632731]
[1646744492369,14.9167662,2576.1,2576.0,1.88632731]
[1646744492812,14.9167662,2576.1,2574.8,3.8858]
[1646744492813,17.6258,2576.0,2575.0,0.5890021]
[1646744493013,12.71128,2575.8,2575.1,2.17686671]
[1646744493212,3.3858,2575.9,2575.3,0.5890021]
[1646744493213,1.04908243,2575.6,2575.3,0.5890021]
[1646744493416,0.9714,2575.5,2575.3,0.5890021]
[1646744493614,12.7114,2575.5,2575.3,0.5890021]
[1646744493813,13.71214154,2575.5,2575.3,0.5890021]
[1646744494016,0.97153,2575.2,2574.6,0.5890021]
[1646744494217,3.97153,2575.2,2574.8,0.5890021]
[1646744494417,0.97153,2575.2,2574.8,0.5890021]
[1646744494618,1.11522903,2575.0,2574.8,0.5890021]
[1646744494816,1.14468057,2575.0,2574.8,0.5890021]
[1646744495015,1.14468057,2575.0,2574.9,0.5890021]
[1646744495920,1.17413211,2575.0,2574.8,0.00438438]
[1646744496566,1.17413211,2575.0,2574.5,0.75050129]
[1646744496766,1.20358365,2575.0,2574.8,0.00438438]
[1646744496966,1.20358365,2575.0,2574.8,0.59338648]
[1646744497666,1.20358365,2575.0,2574.8,0.5890021]
[1646744497867,1.20948535,2575.0,2574.8,0.59338653]
[1646744498168,1.20948535,2575.0,2574.8,0.00438443]
[1646744498971,1.20948535,2575.0,2574.5,0.75050129]
[1646744498972,1.23893689,2575.0,2574.5,0.16149919]
[1646744499172,1.23893689,2575.0,2574.8,0.00438445]
[1646744499973,1.24483859,2575.0,2574.5,0.16149919]
[1646744500210,1.24483859,2575.0,2574.7,0.5890021]
[1646744500412,0.12960956,2575.0,2574.8,0.00438445]
[1646744501114,0.13551126,2575.0,2574.8,0.00438445]
[1646744501311,0.13551126,2575.0,2574.5,0.75050129]
[1646744501511,0.13551126,2575.0,2574.8,0.00438445]
[1646744502112,0.1649628,2575.0,2574.8,1.46880289]
[1646744502512,0.1649628,2575.0,2574.8,1.46441844]
[1646744502714,0.1649628,2575.0,2574.8,1.46880288]
[1646744502914,11.76945154,2575.5,2575.1,0.5890021]
[1646744503115,11.77535324,2575.5,2575.1,0.5890021]
[1646744503970,1.01643846,2575.2,2575.1,0.5890021]
[1646744504169,1.02234016,2575.2,2575.1,0.5890021]
[1646744504969,12.76234016,2575.2,2575.1,0.5890021]
[1646744505171,1.02824186,2575.2,2575.1,0.5890021]
[1646744505772,0.0118034,2575.2,2575.1,0.5890021]
[1646744506170,0.0177051,2575.2,2575.1,0.5890021]
[1646744506772,0.0177051,2575.2,2575.1,1.82051607]
[1646744507171,0.04715664,2575.2,2575.1,1.82051607]
[1646744508011,0.04715664,2575.2,2575.1,0.5890021]
[1646744508412,0.05305834,2575.2,2575.1,0.5890021]
[1646744509218,11.79305834,2575.2,2575.1,0.5890021]
[1646744509416,12.82250988,2575.2,2575.1,0.77095803]
[1646744509618,12.82250988,2575.2,2575.1,0.83189347]
[1646744510419,12.85196142,2575.2,2575.1,0.83189347]
[1646744510619,16.35196142,2575.2,2575.1,0.83189347]
[1646744512164,0.3858,2574.8,2573.4,2.93234833]
[1646744512363,5.88354142,2575.2,2573.7,1.58837003]
[1646744512364,11.74,2574.4,2573.7,1.58837003]
[1646744512863,11.74,2574.4,2573.8,1.58837003]
[1646744513063,11.74,2574.4,2573.4,1.2425]
[1646744513264,1.2120228,2574.1,2573.5,2.52843167]
[1646744513464,0.97192,2574.0,2573.6,1.58849662]
[1646744513864,0.97782171,2574.0,2573.6,1.58849662]
[1646744514667,0.97782171,2574.0,2573.7,0.00438795]
[1646744514968,2.16881985,2574.0,2573.7,0.00438795]
[1646744515216,19.35286025,2574.0,2573.7,0.00438795]
[1646744515616,7.61286025,2574.0,2573.7,0.00438795]
[1646744515817,0.97204,2573.8,2573.0,4.401]
[1646744516016,3.5,2573.7,2572.9,5.2781]
[1646744516214,3.5,2573.7,2572.9,1.59305525]
[1646744516215,1.00014517,2573.5,2572.9,1.59305525]
[1646744516715,1.00014517,2573.5,2572.9,1.20725525]
[1646744516918,1.00604688,2573.5,2572.9,1.20725525]
[1646744517115,1.00604688,2573.5,2573.1,0.00285754]
[1646744517520,0.00590171,2573.5,2573.1,0.00285754]
[1646744517918,0.00590171,2573.5,2572.9,1.20725525]
[1646744517919,0.03535325,2573.5,2572.9,1.20725525]
[1646744518319,0.03535325,2573.5,2573.2,0.00285743]
[1646744518970,4.46189069,2573.5,2573.2,0.00285743]
[1646744519168,4.46189069,2573.5,2572.5,2.19397024]
[1646744519169,4.46189069,2573.5,2572.6,1.58895766]
[1646744519368,4.46189069,2573.5,2573.2,0.06094064]
[1646744519369,16.20189069,2573.5,2573.2,0.06094064]
[1646744519572,16.20189069,2573.5,2573.2,0.06384458]
[1646744519573,0.04125496,2573.5,2573.2,0.06384458]
[1646744519969,0.04715667,2573.5,2573.2,0.06384458]
[1646744520370,0.04715667,2573.5,2573.2,0.06094064]
[1646744520774,0.04715667,2573.5,2573.2,0.06568244]
[1646744520970,0.07660821,2573.5,2573.2,0.06568244]
[1646744521170,11.81660821,2573.5,2573.2,0.06568244]
[1646744521871,0.07660821,2573.5,2573.2,0.06568244]
[1646744522073,0.10605975,2573.5,2573.2,0.06568244]
[1646744522922,0.10605975,2573.5,2573.2,0.06094064]
[1646744523124,0.13551129,2573.5,2573.2,0.06555801]
[1646744523523,0.13551129,2573.5,2573.3,0.97775732]
[1646744524127,0.141413,2573.5,2573.3,0.97775732]
[1646744524326,0.141413,2573.5,2573.3,0.98237464]
[1646744524729,0.17362999,2573.5,2573.4,0.13105631]
[1646744524925,0.10948189,2573.5,2573.4,0.13105631]
[1646744525126,0.13893343,2573.5,2573.4,0.13105631]
[1646744526127,0.16838497,2573.5,2573.4,0.13105631]
[1646744527268,0.17428668,2573.5,2573.4,0.13105631]
[1646744527466,7.44054153,2574.0,2573.5,0.2587863]
[1646744527467,0.04125496,2574.0,2573.5,0.2587863]
[1646744528070,1.0,2573.6,2573.5,0.2587863]
[1646744528269,0.02945154,2573.6,2573.5,0.2587863]
[1646744529275,0.02945154,2573.6,2573.5,4.6105863]
[1646744529276,0.05890308,2573.6,2573.5,4.6105863]
[1646744529472,0.00590171,2574.5,2573.7,0.23300674]
[1646744529675,0.00590171,2574.5,2573.9,0.39805678]
[1646744529875,0.00590171,2574.5,2574.1,0.3858]
[1646744530151,0.0118034,2575.2,2574.5,0.3858]
[1646744530337,0.01770511,2575.2,2574.6,4.14442751]
[1646744530540,0.01770511,2575.2,2574.6,1.11042751]
[1646744530739,0.01770511,2575.2,2574.6,2.08148751]
[1646744531140,0.01770511,2575.2,2574.7,0.3858]
[1646744531342,0.01770511,2575.2,2574.9,0.3858]
[1646744531543,0.01770512,2575.2,2575.0,1.10939578]
[1646744531743,0.01770512,2575.2,2575.1,0.466]
[1646744532450,0.01770513,2575.2,2575.1,0.466]
[1646744533047,0.00137195,2576.0,2575.2,0.00589487]
[1646744533247,0.02945154,2576.1,2575.3,1.8226229]
[1646744533448,0.03535325,2576.1,2575.4,0.21345817]
[1646744533646,0.03535325,2576.1,2575.4,1.06525817]
[1646744533647,0.00590171,2576.1,2575.4,1.06525817]
[1646744534072,0.00590171,2576.1,2575.7,1.31053515]
[1646744534472,0.03535325,2576.1,2575.7,1.31053515]
[1646744535274,0.03535325,2576.1,2575.8,0.00462241]
[1646744535873,0.02945154,2576.1,2575.8,0.00462241]
[1646744536072,0.02945154,2576.1,2575.7,2.28153515]
[1646744536474,0.02945154,2576.1,2575.8,0.00462235]
[1646744536776,0.02945154,2576.1,2575.8,1.94625235]
[1646744536974,0.02945154,2576.1,2575.8,1.94035063]
[1646744537177,0.02945154,2576.1,2575.9,0.22991504]
[1646744537377,0.02945154,2576.1,2575.9,0.69591504]
[1646744539228,0.02945154,2576.1,2576.0,3.5]
[1646744539426,0.02945154,2576.1,2576.0,0.90951231]
[1646744539624,0.00184316,2576.7,2576.2,1.94125]
[1646744539825,0.00137195,2577.3,2576.2,2.40725]
[1646744540024,0.00184319,2576.7,2576.2,2.60805485]
[1646744540625,0.00184319,2576.7,2576.3,1.00539368]
[1646744540927,0.00137195,2577.3,2576.5,0.62322778]
[1646744540928,7.29,2577.0,2576.5,0.62322778]
[1646744541125,0.0171268,2578.2,2576.7,0.60288575]
[1646744541126,0.00137195,2577.5,2576.7,0.60288575]
[1646744541365,0.00137195,2577.5,2576.8,0.466]
[1646744541366,0.01972902,2577.4,2576.8,0.466]
[1646744541571,0.01972902,2577.4,2576.8,0.8518]
[1646744541769,0.01972902,2577.4,2576.9,1.00673777]
[1646744541966,0.01972902,2577.4,2577.0,0.7270072]
[1646744542166,0.00137195,2577.9,2577.7,0.88523644]
[1646744542366,0.97043,2578.0,2577.7,0.88523644]
[1646744542772,1.01133649,2578.1,2577.7,0.88523644]
[1646744543171,0.04035806,2578.0,2577.7,0.88523644]
[1646744543574,0.04219824,2578.0,2577.7,0.88523644]
[1646744544573,0.04035806,2578.0,2577.7,0.88523644]
[1646744544775,0.04219824,2578.0,2577.7,0.88523644]
[1646744545215,0.04219824,2578.0,2577.8,0.97018]
[1646744545617,0.04219824,2578.0,2577.5,2.15016777]
[1646744545818,0.04035806,2578.0,2577.0,1.6081]
[1646744546022,0.04529009,2578.0,2577.0,0.466]
[1646744546218,0.04529009,2578.0,2577.1,0.2236042]
[1646744546618,0.04529009,2578.0,2577.9,1.0968503]
[1646744546817,0.04529009,2578.0,2577.1,4.5754042]
[1646744547019,0.04035806,2578.0,2577.1,4.5754042]
[1646744547218,0.00184247,2577.7,2577.1,4.5754042]
[1646744547417,0.00184247,2577.7,2577.1,1.0754042]
[1646744547617,0.00184247,2577.7,2577.3,0.3858]
[1646744547817,0.00184247,2577.7,2577.3,0.8518]
[1646744548020,0.04035806,2578.0,2577.4,1.56313806]
[1646744548216,0.04035806,2578.0,2577.9,0.932358]
[1646744548417,0.04772683,2578.0,2577.9,0.932358]
[1646744549274,0.04035806,2578.0,2577.9,0.932358]
[1646744549472,5.806e-05,2578.0,2577.9,1.318158]
[1646744549673,5.806e-05,2578.0,2577.9,5.118158]
[1646744549873,5.806e-05,2578.0,2577.9,2.084158]
[1646744550072,5.806e-05,2578.0,2577.9,2.085358]
[1646744550677,5.806e-05,2578.0,2577.9,0.7672]
[1646744551475,5.806e-05,2578.0,2577.9,0.4672]
[1646744554423,5.806e-05,2578.0,2577.9,0.69635761]
[1646744554824,5.806e-05,2578.0,2577.9,4.49635761]
[1646744555023,5.806e-05,2578.0,2577.9,1.97095761]
[1646744555222,5.806e-05,2578.0,2577.9,5.85675761]
[1646744555730,5.806e-05,2578.0,2577.9,3.56955434]
[1646744555926,5.806e-05,2578.0,2577.9,3.18375434]
[1646744556126,5.806e-05,2578.0,2577.9,1.20495761]
[1646744559287,5.806e-05,2578.0,2577.9,1.83895761]
[1646744560115,5.806e-05,2578.0,2577.9,1.83775761]
[1646744561426,5.806e-05,2578.0,2577.9,2.79040775]
[1646744561622,5.806e-05,2578.0,2577.9,6.29040775]
[1646744561823,5.806e-05,2578.0,2577.9,7.35173923]
[1646744562024,5.806e-05,2578.0,2577.9,3.85173923]
[1646744562428,5.806e-05,2578.0,2577.9,3.25640775]
[1646744563223,5.806e-05,2578.0,2577.9,3.55640775]
[1646744563627,0.00830448,2579.0,2578.2,5.5]
[1646744563884,0.00830448,2579.0,2578.4,0.634]
[1646744564080,0.00830448,2579.0,2578.6,1.0198]
[1646744564278,0.00830448,2579.0,2578.8,0.634]
[1646744564477,0.00830448,2579.0,2578.8,1.0198]
[1646744564478,4.48e-06,2579.0,2578.8,1.0198]
[1646744564678,4.48e-06,2579.0,2578.9,5.69465282]
[1646744564878,6.984e-05,2579.3,2579.1,2.57256]
[1646744565080,7.292e-05,2579.4,2579.3,0.65399048]
[1646744565278,4.584e-05,2579.5,2579.3,5.00579048]
[1646744565581,0.04410644,2580.0,2579.7,0.634]
[1646744565582,0.01513712,2579.8,2579.7,0.634]
[1646744565781,0.01513712,2579.8,2579.7,2.54703397]
[1646744565782,0.00754816,2579.8,2579.7,2.54703397]
[1646744565978,0.00754816,2579.8,2579.7,8.37091397]
[1646744566180,0.00754816,2579.8,2579.7,4.87091397]
[1646744566380,0.00754816,2579.8,2579.7,5.87091397]
[1646744566577,4.816e-05,2579.8,2579.7,5.87091397]
[1646744566778,0.03075136,2580.1,2579.8,5.5]
[1646744566979,0.01021752,2580.2,2579.8,5.5]
[1646744566980,0.01021752,2580.2,2580.0,1.0198]
[1646744567178,1.752e-05,2580.2,2580.1,1.4858]
[1646744567380,0.04568184,2580.9,2580.1,1.4858]
[1646744567381,0.04568184,2580.9,2580.2,0.63728248]
[1646744567636,0.04568184,2580.9,2580.7,0.3858]
[1646744567826,0.02797718,2581.1,2580.9,0.01331816]
[1646744567827,0.0265746,2581.1,2580.9,0.01331816]
[1646744568027,0.00100516,2581.2,2581.0,1.0999102]
[1646744568228,0.02005324,2581.2,2581.0,1.0999102]
[1646744568627,0.02005324,2581.2,2581.0,0.6339102]
[1646744572372,0.02005324,2581.2,2580.1,0.1317283]
[1646744572373,5.5,2581.1,2580.1,0.1317283]
[1646744572577,0.88700774,2580.6,2580.1,0.1317283]
[1646744572772,0.96938,2580.6,2580.1,0.1317283]
[1646744572972,0.3,2580.6,2580.1,0.1317283]
[1646744573375,0.00140258,2581.0,2580.0,0.1317283]
[1646744573574,0.01904808,2581.1,2580.2,0.1317283]
[1646744573879,0.00477744,2580.5,2580.2,0.1317283]
[1646744574478,0.00477744,2580.5,2580.0,0.1317283]
[1646744574674,0.88252278,2580.8,2580.5,0.0012]
[1646744574874,12.62252278,2580.8,2580.5,0.0012]
[1646744575328,11.74,2580.6,2580.5,0.0012]
[1646744575628,13.03797826,2580.7,2580.5,0.0012]
[1646744575827,1.0,2580.6,2579.7,0.18326781]
[1646744576028,1.6858,2580.7,2579.7,0.14826781]
[1646744576228,0.00477722,2580.7,2579.8,0.1317283]
[1646744576431,0.00477722,2580.7,2579.7,0.61426781]
[1646744576432,0.00477722,2580.7,2580.0,0.1317283]
[1646744576727,0.00477722,2580.7,2580.2,0.1317283]
[1646744577130,0.97073258,2581.0,2580.2,0.1317283]
[1646744577131,1.13402586,2580.5,2580.2,0.1317283]
[1646744577329,1.13867588,2580.5,2580.2,0.1317283]
[1646744577529,1.13867588,2580.5,2579.9,0.1317283]
[1646744577932,1.08867588,2580.5,2579.9,0.1317283]
[1646744578331,1.08402586,2580.5,2579.9,0.1317283]
[1646744578532,1.08402586,2580.5,2579.7,0.14826781]
[1646744578533,0.00465018,2580.3,2579.7,0.14826781]
[1646744579573,1.08402586,2580.5,2579.7,0.14826781]
[1646744579774,1.08431339,2580.1,2579.7,0.14826781]
[1646744579974,0.0046504,2580.1,2579.7,0.14826781]
[1646744580572,0.01859882,2580.5,2579.7,0.14826781]
[1646744580778,0.38720258,2580.8,2579.8,0.1317283]
[1646744580973,0.00465912,2580.0,2579.9,0.1317283]
[1646744581775,0.0186337,2580.4,2579.9,0.1317283]
[1646744581975,1.1455173,2580.7,2580.0,0.1317283]
[1646744582177,0.00465907,2580.1,2580.0,0.1317283]
[1646744582648,5.907e-05,2580.1,2580.0,0.1317283]
[1646744582831,5.907e-05,2580.1,2580.0,0.5977283]
[1646744583131,0.01904808,2581.1,2580.0,4.4835283]
[1646744583132,0.02045066,2581.1,2580.0,4.4835283]
[1646744583332,0.01904808,2581.1,2580.4,0.1317283]
[1646744583532,0.01904808,2581.1,2580.5,0.1317283]
[1646744583736,0.01904808,2581.1,2580.8,0.1317283]
[1646744584635,0.01904808,2581.1,2580.9,0.1317283]
[1646744584636,0.02370547,2581.1,2580.9,0.1317283]
[1646744585437,0.01904808,2581.1,2580.9,0.1317283]
[1646744585638,0.00100516,2581.2,2581.1,0.04232388]
[1646744585838,0.02497922,2581.7,2581.1,0.04232388]
[1646744586038,0.02913282,2581.7,2581.1,0.04232388]
[1646744586369,0.02913282,2581.7,2581.2,0.1317283]
[1646744586773,0.0247712,2581.7,2581.1,0.04232388]
[1646744587577,0.0247712,2581.7,2581.3,0.1317283]
[1646744587872,0.04998992,2582.1,2581.6,0.1317283]
[1646744587873,4.972e-05,2582.1,2581.6,0.1317283]
[1646744588077,4.972e-05,2582.1,2581.8,0.1317283]
[1646744588274,4.972e-05,2582.1,2582.0,0.1317283]
[1646744588475,4.972e-05,2582.1,2582.0,4.4835283]
[1646744588675,4.972e-05,2582.1,2582.0,4.7835283]
[1646744588875,4.972e-05,2582.1,2582.0,2.47058363]
[1646744589279,4.972e-05,2582.1,2582.0,1.47058363]
[1646744589476,4.972e-05,2582.1,2582.0,6.90696933]
[1646744589676,4.972e-05,2582.1,2582.0,1.865874]
[1646744589876,4.972e-05,2582.1,2582.0,3.41098179]
[1646744590318,4.972e-05,2582.1,2582.0,3.02518179]
[1646744590920,4.972e-05,2582.1,2582.0,3.41098179]
[1646744591126,4.972e-05,2582.1,2582.0,2.41098179]
[1646744591325,4.972e-05,2582.1,2582.0,3.41098179]
[1646744591525,4.972e-05,2582.1,2582.0,2.41098179]
[1646744591933,4.972e-05,2582.1,2582.0,2.02518179]
[1646744592529,4.972e-05,2582.1,2582.0,5.91098179]
[1646744592734,4.972e-05,2582.1,2582.0,6.91098179]
[1646744593231,3.852e-05,2582.3,2582.0,6.91098179]
[1646744593429,1.588e-05,2582.1,2582.0,6.91098179]
[1646744593630,1.588e-05,2582.1,2582.0,7.87918179]
[1646744594270,1.588e-05,2582.1,2582.0,8.0747493]
[1646744594473,1.588e-05,2582.1,2582.0,11.0747493]
[1646744594671,1.588e-05,2582.1,2582.0,11.12584564]
[1646744594873,0.9743073,2583.4,2582.2,0.5175283]
[1646744595073,0.9743073,2583.4,2582.4,1.42368755]
[1646744595074,7.85e-05,2582.7,2582.4,1.42368755]
[1646744595275,0.01871114,2583.0,2582.7,0.5175283]
[1646744595474,1.114e-05,2583.0,2582.9,0.5175283]
[1646744595675,1.114e-05,2583.0,2582.9,0.9835283]